Workbook

Sheet Input Payroll
B1: KALKULATOR GAJI | K1: AKHIR PERIODE: | L1: 41372 | N1: NAMA PERUSAHAAN: | P1: ADVENTURE WORKS
B3: ID | C3: Nama Karyawan | D3: Jam Kerja Rutin | E3: Jam Liburan | F3: Jam Sakit | G3: Jam Lembur | H3: Tarif Lembur | I3: Gaji Kotor | J3: Pajak dan Potongan | K3: Potongan Lain | L3: Gaji Bersih | N3: Upah per Jam | O3: Status Pajak | P3: Tunjangan Negara | Q3: Pajak Negara | R3: Pajak Penghasilan | S3: Pajak Jaminan Sosial | T3: Pajak Asuransi Sosial | U3: Total Pajak Berjalan | V3: Potongan Asuransi | W3: Potongan Rutin Lainnya | X3: Total Potongan Rutin
B4: 1001 | C4: Tony Smith | D4: 50 | E4: 5 | F4: 1 | I4: =SUM(Employees[[#This Row],[Jam Kerja Rutin]:[Jam Sakit]])*Employees[[#This Row],[Upah per Jam]]+Employees[[#This Row],[Jam Lembur]]*Employees[[#This Row],[Tarif Lembur]] -> 560 | J4: =Employees[[#This Row],[Gaji Kotor]]*Employees[[#This Row],[Total Pajak Berjalan]] + Employees[[#This Row],[Total Potongan Rutin]] -> 273.08 | K4: 20 | L4: =Employees[[#This Row],[Gaji Kotor]]-Employees[[#This Row],[Pajak dan Potongan]]-Employees[[#This Row],[Potongan Lain]] -> 266.92 | N4: 10 | O4: 1 | P4: 4 | Q4: 0.023 | R4: 0.28 | S4: 0.063 | T4: 0.0145 | U4: =SUM(Employees[[#This Row],[Pajak Negara]:[Pajak Asuransi Sosial]]) -> 0.3805 | V4: 20 | W4: 40 | X4: =SUM(Employees[[#This Row],[Potongan Asuransi]:[Potongan Rutin Lainnya]]) -> 60
B5: 1002 | C5: David Jones | D5: 40 | I5: =SUM(Employees[[#This Row],[Jam Kerja Rutin]:[Jam Sakit]])*Employees[[#This Row],[Upah per Jam]]+Employees[[#This Row],[Jam Lembur]]*Employees[[#This Row],[Tarif Lembur]] -> 320 | J5: =Employees[[#This Row],[Gaji Kotor]]*Employees[[#This Row],[Total Pajak Berjalan]] + Employees[[#This Row],[Total Potongan Rutin]] -> 131.76 | L5: =Employees[[#This Row],[Gaji Kotor]]-Employees[[#This Row],[Pajak dan Potongan]]-Employees[[#This Row],[Potongan Lain]] -> 188.24 | N5: 8 | O5: 1 | P5: 1 | Q5: 0.023 | R5: 0.28 | S5: 0.063 | T5: 0.0145 | U5: =SUM(Employees[[#This Row],[Pajak Negara]:[Pajak Asuransi Sosial]]) -> 0.3805 | V5: 0 | W5: 10 | X5: =SUM(Employees[[#This Row],[Potongan Asuransi]:[Potongan Rutin Lainnya]]) -> 10
B6: 1003 | C6: Denise Smith | D6: 35 | E6: 3 | I6: =SUM(Employees[[#This Row],[Jam Kerja Rutin]:[Jam Sakit]])*Employees[[#This Row],[Upah per Jam]]+Employees[[#This Row],[Jam Lembur]]*Employees[[#This Row],[Tarif Lembur]] -> 532 | J6: =Employees[[#This Row],[Gaji Kotor]]*Employees[[#This Row],[Total Pajak Berjalan]] + Employees[[#This Row],[Total Potongan Rutin]] -> 240.426 | L6: =Employees[[#This Row],[Gaji Kotor]]-Employees[[#This Row],[Pajak dan Potongan]]-Employees[[#This Row],[Potongan Lain]] -> 291.574 | N6: 14 | O6: 1 | P6: 3 | Q6: 0.023 | R6: 0.28 | S6: 0.063 | T6: 0.0145 | U6: =SUM(Employees[[#This Row],[Pajak Negara]:[Pajak Asuransi Sosial]]) -> 0.3805 | V6: 18 | W6: 20 | X6: =SUM(Employees[[#This Row],[Potongan Asuransi]:[Potongan Rutin Lainnya]]) -> 38
B7: 1008 | C7: Sebastien Motte | D7: 50 | E7: 5 | F7: 1 | I7: =SUM(Employees[[#This Row],[Jam Kerja Rutin]:[Jam Sakit]])*Employees[[#This Row],[Upah per Jam]]+Employees[[#This Row],[Jam Lembur]]*Employees[[#This Row],[Tarif Lembur]] -> 1120 | J7: =Employees[[#This Row],[Gaji Kotor]]*Employees[[#This Row],[Total Pajak Berjalan]] + Employees[[#This Row],[Total Potongan Rutin]] -> 441.16 | L7: =Employees[[#This Row],[Gaji Kotor]]-Employees[[#This Row],[Pajak dan Potongan]]-Employees[[#This Row],[Potongan Lain]] -> 678.84 | N7: 20 | O7: 1 | P7: 0 | Q7: 0.023 | R7: 0.28 | S7: 0.063 | T7: 0.0145 | U7: =SUM(Employees[[#This Row],[Pajak Negara]:[Pajak Asuransi Sosial]]) -> 0.3805 | V7: 15 | X7: =SUM(Employees[[#This Row],[Potongan Asuransi]:[Potongan Rutin Lainnya]]) -> 15
B8: 1011 | C8: Isabelle Scemla | D8: 40 | G8: 2 | H8: 15 | I8: =SUM(Employees[[#This Row],[Jam Kerja Rutin]:[Jam Sakit]])*Employees[[#This Row],[Upah per Jam]]+Employees[[#This Row],[Jam Lembur]]*Employees[[#This Row],[Tarif Lembur]] -> 430 | J8: =Employees[[#This Row],[Gaji Kotor]]*Employees[[#This Row],[Total Pajak Berjalan]] + Employees[[#This Row],[Total Potongan Rutin]] -> 223.615 | L8: =Employees[[#This Row],[Gaji Kotor]]-Employees[[#This Row],[Pajak dan Potongan]]-Employees[[#This Row],[Potongan Lain]] -> 206.385 | N8: 10 | O8: 1 | P8: 0 | Q8: 0.023 | R8: 0.28 | S8: 0.063 | T8: 0.0145 | U8: =SUM(Employees[[#This Row],[Pajak Negara]:[Pajak Asuransi Sosial]]) -> 0.3805 | V8: 20 | W8: 40 | X8: =SUM(Employees[[#This Row],[Potongan Asuransi]:[Potongan Rutin Lainnya]]) -> 60
B9: 1012 | C9: David Bristol | D9: 40 | E9: 5 | F9: 1 | I9: =SUM(Employees[[#This Row],[Jam Kerja Rutin]:[Jam Sakit]])*Employees[[#This Row],[Upah per Jam]]+Employees[[#This Row],[Jam Lembur]]*Employees[[#This Row],[Tarif Lembur]] -> 552 | J9: =Employees[[#This Row],[Gaji Kotor]]*Employees[[#This Row],[Total Pajak Berjalan]] + Employees[[#This Row],[Total Potongan Rutin]] -> 270.036 | L9: =Employees[[#This Row],[Gaji Kotor]]-Employees[[#This Row],[Pajak dan Potongan]]-Employees[[#This Row],[Potongan Lain]] -> 281.964 | N9: 12 | O9: 1 | P9: 4 | Q9: 0.023 | R9: 0.28 | S9: 0.063 | T9: 0.0145 | U9: =SUM(Employees[[#This Row],[Pajak Negara]:[Pajak Asuransi Sosial]]) -> 0.3805 | V9: 20 | W9: 40 | X9: =SUM(Employees[[#This Row],[Potongan Asuransi]:[Potongan Rutin Lainnya]]) -> 60
B10: 1025 | C10: Anne Weiler | D10: 36 | F10: 2 | G10: 1 | H10: 18 | I10: =SUM(Employees[[#This Row],[Jam Kerja Rutin]:[Jam Sakit]])*Employees[[#This Row],[Upah per Jam]]+Employees[[#This Row],[Jam Lembur]]*Employees[[#This Row],[Tarif Lembur]] -> 474 | J10: =Employees[[#This Row],[Gaji Kotor]]*Employees[[#This Row],[Total Pajak Berjalan]] + Employees[[#This Row],[Total Potongan Rutin]] -> 225.357 | K10: 25 | L10: =Employees[[#This Row],[Gaji Kotor]]-Employees[[#This Row],[Pajak dan Potongan]]-Employees[[#This Row],[Potongan Lain]] -> 223.643 | N10: 12 | O10: 1 | P10: 2 | Q10: 0.023 | R10: 0.28 | S10: 0.063 | T10: 0.0145 | U10: =SUM(Employees[[#This Row],[Pajak Negara]:[Pajak Asuransi Sosial]]) -> 0.3805 | V10: 25 | W10: 20 | X10: =SUM(Employees[[#This Row],[Potongan Asuransi]:[Potongan Rutin Lainnya]]) -> 45
B11: 1032 | C11: Luka Abrus | D11: 40 | E11: 5 | F11: 1 | I11: =SUM(Employees[[#This Row],[Jam Kerja Rutin]:[Jam Sakit]])*Employees[[#This Row],[Upah per Jam]]+Employees[[#This Row],[Jam Lembur]]*Employees[[#This Row],[Tarif Lembur]] -> 460 | J11: =Employees[[#This Row],[Gaji Kotor]]*Employees[[#This Row],[Total Pajak Berjalan]] + Employees[[#This Row],[Total Potongan Rutin]] -> 175.03 | K11: 50 | L11: =Employees[[#This Row],[Gaji Kotor]]-Employees[[#This Row],[Pajak dan Potongan]]-Employees[[#This Row],[Potongan Lain]] -> 234.97 | N11: 10 | O11: 1 | P11: 3 | Q11: 0.023 | R11: 0.28 | S11: 0.063 | T11: 0.0145 | U11: =SUM(Employees[[#This Row],[Pajak Negara]:[Pajak Asuransi Sosial]]) -> 0.3805 | X11: =SUM(Employees[[#This Row],[Potongan Asuransi]:[Potongan Rutin Lainnya]]) -> 0
B12: 1049 | C12: David Ludwig | D12: 40 | E12: 1 | I12: =SUM(Employees[[#This Row],[Jam Kerja Rutin]:[Jam Sakit]])*Employees[[#This Row],[Upah per Jam]]+Employees[[#This Row],[Jam Lembur]]*Employees[[#This Row],[Tarif Lembur]] -> 615 | J12: =Employees[[#This Row],[Gaji Kotor]]*Employees[[#This Row],[Total Pajak Berjalan]] + Employees[[#This Row],[Total Potongan Rutin]] -> 259.0075 | K12: 23 | L12: =Employees[[#This Row],[Gaji Kotor]]-Employees[[#This Row],[Pajak dan Potongan]]-Employees[[#This Row],[Potongan Lain]] -> 332.9925 | N12: 15 | O12: 1 | P12: 2 | Q12: 0.023 | R12: 0.28 | S12: 0.063 | T12: 0.0145 | U12: =SUM(Employees[[#This Row],[Pajak Negara]:[Pajak Asuransi Sosial]]) -> 0.3805 | V12: 25 | X12: =SUM(Employees[[#This Row],[Potongan Asuransi]:[Potongan Rutin Lainnya]]) -> 25
B13: Total | C13: =SUBTOTAL(103,Employees[Nama Karyawan]) -> 9 | D13: =SUBTOTAL(109,Employees[Jam Kerja Rutin]) -> 371 | E13: =SUBTOTAL(109,Employees[Jam Liburan]) -> 24 | F13: =SUBTOTAL(109,Employees[Jam Sakit]) -> 6 | G13: =SUBTOTAL(109,Employees[Jam Lembur]) -> 3 | I13: =SUBTOTAL(109,Employees[Gaji Kotor]) -> 5063 | J13: =SUBTOTAL(109,Employees[Pajak dan Potongan]) -> 2239.4715 | K13: =SUBTOTAL(109,Employees[Potongan Lain]) -> 118 | L13: =SUBTOTAL(109,Employees[Gaji Bersih]) -> 2705.5285 | V13: =SUBTOTAL(109,Employees[Potongan Asuransi]) -> 143 | W13: =SUBTOTAL(109,Employees[Potongan Rutin Lainnya]) -> 170 | X13: =SUBTOTAL(109,Employees[Total Potongan Rutin]) -> 313

Sheet stubs_template (hidden)
C2: =CompanyName -> ADVENTURE WORKS
C3: PERIODE | D3: =PeriodEnding -> 41372 | G3: NAMA | H3: =IFERROR(INDEX(Employees[Nama Karyawan],Stub),"") -> Tony Smith | K3: ID KARYAWAN | L3: =IFERROR(INDEX(Employees[ID],Stub),"") -> 1001
C4: Status Pajak | E4: =IFERROR(INDEX(Employees[Status Pajak],Stub),"") -> 1 | G4: Tunjangan Negara (Dari W-4) | I4: =IFERROR(INDEX(Employees[Tunjangan Negara],Stub),"") -> 4 | K4: Jam Kerja | M4: =IFERROR(INDEX(Employees[Jam Kerja Rutin],Stub),"") -> 50
C5: Tarif per Jam | E5: =IFERROR(INDEX(Employees[Upah per Jam],Stub),"") -> 10 | G5: Tarif Lembur | I5: =IFERROR(INDEX(Employees[Tarif Lembur],Stub),"") -> 0 | K5: Jam Sakit | M5: =IFERROR(INDEX(Employees[Jam Sakit],Stub),"") -> 1
C6: Pajak Jaminan Sosial | E6: =IFERROR(INDEX(Employees[Pajak Jaminan Sosial],Stub) * INDEX(Employees[Gaji Kotor],Stub),"") -> 35.28 | G6: Pajak Penghasilan | I6: =IFERROR(INDEX(Employees[Pajak Penghasilan],Stub) * INDEX(Employees[Gaji Kotor],Stub),"") -> 156.8 | K6: Jam Liburan | M6: =IFERROR(INDEX(Employees[Jam Liburan],Stub),"") -> 5
C7: Pajak Asuransi Sosial | E7: =IFERROR(INDEX(Employees[Pajak Asuransi Sosial],Stub) * INDEX(Employees[Gaji Kotor],Stub),"") -> 8.12 | G7: Pajak Negara | I7: =IFERROR(INDEX(Employees[Pajak Negara],Stub) * INDEX(Employees[Gaji Kotor],Stub),"") -> 12.88 | K7: Jam Lembur | M7: =IFERROR(INDEX(Employees[Jam Lembur],Stub),"") -> 0
C8: Potongan Asuransi | E8: =IFERROR(INDEX(Employees[Potongan Asuransi],Stub),"") -> 20 | G8: Potongan Rutin Lain | I8: =IFERROR(INDEX(Employees[Potongan Rutin Lainnya],Stub),"") -> 40 | K8: Gaji Kotor | M8: =IFERROR(INDEX(Employees[Gaji Kotor],Stub),"") -> 560
C9: Total Pajak dan | E9: =IFERROR(INDEX(Employees[Pajak dan Potongan],Stub),"") -> 273.08 | G9: Potongan Lain | I9: =IFERROR(INDEX(Employees[Potongan Lain],Stub),"") -> 20 | K9: Total Pajak dan Potongan | M9: =IFERROR(INDEX(Employees[Pajak dan Potongan],Stub) + INDEX(Employees[Potongan Lain],Stub),"") -> 293.08
C10: Potongan Rutin
K11: GAJI BERSIH | M11: =IFERROR(INDEX(Employees[Gaji Bersih],Stub),"") -> 266.92
C14: =CompanyName -> ADVENTURE WORKS
C15: PERIODE | D15: =PeriodEnding -> 41372 | G15: NAMA | H15: =IFERROR(INDEX(Employees[Nama Karyawan],Stub),"") -> David Jones | K15: ID KARYAWAN | L15: =IFERROR(INDEX(Employees[ID],Stub),"") -> 1002
C16: Status Pajak | E16: =IFERROR(INDEX(Employees[Status Pajak],Stub),"") -> 1 | G16: Tunjangan Negara (Dari W-4) | I16: =IFERROR(INDEX(Employees[Tunjangan Negara],Stub),"") -> 1 | K16: Jam Kerja | M16: =IFERROR(INDEX(Employees[Jam Kerja Rutin],Stub),"") -> 40
C17: Tarif per Jam | E17: =IFERROR(INDEX(Employees[Upah per Jam],Stub),"") -> 8 | G17: Tarif Lembur | I17: =IFERROR(INDEX(Employees[Tarif Lembur],Stub),"") -> 0 | K17: Jam Sakit | M17: =IFERROR(INDEX(Employees[Jam Sakit],Stub),"") -> 0
C18: Pajak Jaminan Sosial | E18: =IFERROR(INDEX(Employees[Pajak Jaminan Sosial],Stub) * INDEX(Employees[Gaji Kotor],Stub),"") -> 20.16 | G18: Pajak Penghasilan | I18: =IFERROR(INDEX(Employees[Pajak Penghasilan],Stub) * INDEX(Employees[Gaji Kotor],Stub),"") -> 89.6 | K18: Jam Liburan | M18: =IFERROR(INDEX(Employees[Jam Liburan],Stub),"") -> 0
C19: Pajak Asuransi Sosial | E19: =IFERROR(INDEX(Employees[Pajak Asuransi Sosial],Stub) * INDEX(Employees[Gaji Kotor],Stub),"") -> 4.64 | G19: Pajak Negara | I19: =IFERROR(INDEX(Employees[Pajak Negara],Stub) * INDEX(Employees[Gaji Kotor],Stub),"") -> 7.36 | K19: Jam Lembur | M19: =IFERROR(INDEX(Employees[Jam Lembur],Stub),"") -> 0
C20: Potongan Asuransi | E20: =IFERROR(INDEX(Employees[Potongan Asuransi],Stub),"") -> 0 | G20: Potongan Rutin Lain | I20: =IFERROR(INDEX(Employees[Potongan Rutin Lainnya],Stub),"") -> 10 | K20: Gaji Kotor | M20: =IFERROR(INDEX(Employees[Gaji Kotor],Stub),"") -> 320
C21: Total Pajak dan | E21: =IFERROR(INDEX(Employees[Pajak dan Potongan],Stub),"") -> 131.76 | G21: Potongan Lain | I21: =IFERROR(INDEX(Employees[Potongan Lain],Stub),"") -> 0 | K21: Total Pajak dan Potongan | M21: =IFERROR(INDEX(Employees[Pajak dan Potongan],Stub) + INDEX(Employees[Potongan Lain],Stub),"") -> 131.76
C22: Potongan Rutin
K23: GAJI BERSIH | M23: =IFERROR(INDEX(Employees[Gaji Bersih],Stub),"") -> 188.24
C26: =CompanyName -> ADVENTURE WORKS
C27: PERIODE | D27: =PeriodEnding -> 41372 | G27: NAMA | H27: =IFERROR(INDEX(Employees[Nama Karyawan],Stub),"") -> Denise Smith | K27: ID KARYAWAN | L27: =IFERROR(INDEX(Employees[ID],Stub),"") -> 1003
C28: Status Pajak | E28: =IFERROR(INDEX(Employees[Status Pajak],Stub),"") -> 1 | G28: Tunjangan Negara (Dari W-4) | I28: =IFERROR(INDEX(Employees[Tunjangan Negara],Stub),"") -> 3 | K28: Jam Kerja | M28: =IFERROR(INDEX(Employees[Jam Kerja Rutin],Stub),"") -> 35
C29: Tarif per Jam | E29: =IFERROR(INDEX(Employees[Upah per Jam],Stub),"") -> 14 | G29: Tarif Lembur | I29: =IFERROR(INDEX(Employees[Tarif Lembur],Stub),"") -> 0 | K29: Jam Sakit | M29: =IFERROR(INDEX(Employees[Jam Sakit],Stub),"") -> 0
C30: Pajak Jaminan Sosial | E30: =IFERROR(INDEX(Employees[Pajak Jaminan Sosial],Stub) * INDEX(Employees[Gaji Kotor],Stub),"") -> 33.516 | G30: Pajak Penghasilan | I30: =IFERROR(INDEX(Employees[Pajak Penghasilan],Stub) * INDEX(Employees[Gaji Kotor],Stub),"") -> 148.96 | K30: Jam Liburan | M30: =IFERROR(INDEX(Employees[Jam Liburan],Stub),"") -> 3
C31: Pajak Asuransi Sosial | E31: =IFERROR(INDEX(Employees[Pajak Asuransi Sosial],Stub) * INDEX(Employees[Gaji Kotor],Stub),"") -> 7.714 | G31: Pajak Negara | I31: =IFERROR(INDEX(Employees[Pajak Negara],Stub) * INDEX(Employees[Gaji Kotor],Stub),"") -> 12.236 | K31: Jam Lembur | M31: =IFERROR(INDEX(Employees[Jam Lembur],Stub),"") -> 0
C32: Potongan Asuransi | E32: =IFERROR(INDEX(Employees[Potongan Asuransi],Stub),"") -> 18 | G32: Potongan Rutin Lain | I32: =IFERROR(INDEX(Employees[Potongan Rutin Lainnya],Stub),"") -> 20 | K32: Gaji Kotor | M32: =IFERROR(INDEX(Employees[Gaji Kotor],Stub),"") -> 532
C33: Total Pajak dan | E33: =IFERROR(INDEX(Employees[Pajak dan Potongan],Stub),"") -> 240.426 | G33: Potongan Lain | I33: =IFERROR(INDEX(Employees[Potongan Lain],Stub),"") -> 0 | K33: Total Pajak dan Potongan | M33: =IFERROR(INDEX(Employees[Pajak dan Potongan],Stub) + INDEX(Employees[Potongan Lain],Stub),"") -> 240.426
C34: Potongan Rutin
K35: GAJI BERSIH | M35: =IFERROR(INDEX(Employees[Gaji Bersih],Stub),"") -> 291.574
C38: =CompanyName -> ADVENTURE WORKS
C39: PERIODE | D39: =PeriodEnding -> 41372 | G39: NAMA | H39: =IFERROR(INDEX(Employees[Nama Karyawan],Stub),"") -> Sebastien Motte | K39: ID KARYAWAN | L39: =IFERROR(INDEX(Employees[ID],Stub),"") -> 1008
C40: Status Pajak | E40: =IFERROR(INDEX(Employees[Status Pajak],Stub),"") -> 1 | G40: Tunjangan Negara (Dari W-4) | I40: =IFERROR(INDEX(Employees[Tunjangan Negara],Stub),"") -> 0 | K40: Jam Kerja | M40: =IFERROR(INDEX(Employees[Jam Kerja Rutin],Stub),"") -> 50
C41: Tarif per Jam | E41: =IFERROR(INDEX(Employees[Upah per Jam],Stub),"") -> 20 | G41: Tarif Lembur | I41: =IFERROR(INDEX(Employees[Tarif Lembur],Stub),"") -> 0 | K41: Jam Sakit | M41: =IFERROR(INDEX(Employees[Jam Sakit],Stub),"") -> 1
C42: Pajak Jaminan Sosial | E42: =IFERROR(INDEX(Employees[Pajak Jaminan Sosial],Stub) * INDEX(Employees[Gaji Kotor],Stub),"") -> 70.56 | G42: Pajak Penghasilan | I42: =IFERROR(INDEX(Employees[Pajak Penghasilan],Stub) * INDEX(Employees[Gaji Kotor],Stub),"") -> 313.6 | K42: Jam Liburan | M42: =IFERROR(INDEX(Employees[Jam Liburan],Stub),"") -> 5
C43: Pajak Asuransi Sosial | E43: =IFERROR(INDEX(Employees[Pajak Asuransi Sosial],Stub) * INDEX(Employees[Gaji Kotor],Stub),"") -> 16.24 | G43: Pajak Negara | I43: =IFERROR(INDEX(Employees[Pajak Negara],Stub) * INDEX(Employees[Gaji Kotor],Stub),"") -> 25.76 | K43: Jam Lembur | M43: =IFERROR(INDEX(Employees[Jam Lembur],Stub),"") -> 0
C44: Potongan Asuransi | E44: =IFERROR(INDEX(Employees[Potongan Asuransi],Stub),"") -> 15 | G44: Potongan Rutin Lain | I44: =IFERROR(INDEX(Employees[Potongan Rutin Lainnya],Stub),"") -> 0 | K44: Gaji Kotor | M44: =IFERROR(INDEX(Employees[Gaji Kotor],Stub),"") -> 1120
C45: Total Pajak dan | E45: =IFERROR(INDEX(Employees[Pajak dan Potongan],Stub),"") -> 441.16 | G45: Potongan Lain | I45: =IFERROR(INDEX(Employees[Potongan Lain],Stub),"") -> 0 | K45: Total Pajak dan Potongan | M45: =IFERROR(INDEX(Employees[Pajak dan Potongan],Stub) + INDEX(Employees[Potongan Lain],Stub),"") -> 441.16
C46: Potongan Rutin
K47: GAJI BERSIH | M47: =IFERROR(INDEX(Employees[Gaji Bersih],Stub),"") -> 678.84
